fUSD/lending_fUSD_20241202
["ID","MTS","AMOUNT","RATE_DAILY","PERIOD"]
[343980886,1733169365791,-713.56,0.00025,120]
[343980887,1733169365820,-313.7808919,0.00025,120]
[343980888,1733169365849,-643.2,0.00025,120]
[343980889,1733169365882,-637.0242533,0.00025,120]
[343980890,1733169365912,-500.0,0.00025,120]
[343980891,1733169365942,-2067.91,0.00025,120]
[343980892,1733169365973,-1200.13,0.00025,120]
[343980893,1733169366003,-4184.83,0.00025,120]
[343980894,1733169366031,-500.0,0.00025,120]
[343980895,1733169366059,-206.43976149,0.00025,120]
[343980896,1733169366088,-605.31,0.00025,120]
[343980897,1733169366116,-314.39059517,0.00025,120]
[343980898,1733169366144,-500.0,0.00025,120]
[343980899,1733169366172,-500.0,0.00025,120]
[343980900,1733169366200,-1596.09,0.00025,120]
[343980901,1733169366230,-1455.97,0.00025,120]
[343980902,1733169366259,-500.0,0.00025,120]
[343980903,1733169366287,-500.0,0.00025,120]
[343980904,1733169366316,-500.0,0.00025,120]
[343980905,1733169366345,-1126.49,0.00025,120]
[343980906,1733169366373,-1384.92,0.00025,120]
[343980907,1733169366402,-500.0,0.00025,120]
[343980908,1733169366431,-1057.95,0.00025,120]
[343980909,1733169366460,-500.0,0.00025,120]
[343980910,1733169366492,-1043.2,0.00025,120]
[343980911,1733169366525,-500.0,0.00025,120]
[343980912,1733169366556,-500.0,0.00025,120]
[343980913,1733169366588,-500.0,0.00025,120]
[343980914,1733169366621,-808.24,0.00025,120]
[343980915,1733169366651,-972.55,0.00025,120]
[343980916,1733169366682,-535.74,0.00025,120]
[343980917,1733169366710,-976.93,0.00025,120]
[343980918,1733169366745,-538.13,0.00025,120]
[343980919,1733169366774,-538.13,0.00025,120]
[343980920,1733169366803,-538.13,0.00025,120]
[343980921,1733169366833,-1114.71,0.00025,120]
[343980922,1733169366863,-500.0,0.00025,120]
[343980923,1733169366894,-538.13,0.00025,120]
[343980924,1733169366925,-538.13,0.00025,120]
[343980925,1733169366956,-500.0,0.00025,120]
[343980926,1733169366989,-538.13,0.00025,120]
[343980927,1733169367018,-538.13,0.00025,120]
[343980928,1733169367048,-538.13,0.00025,120]
[343980929,1733169367076,-538.13,0.00025,120]
[343980930,1733169367105,-538.13,0.00025,120]
[343980931,1733169367134,-538.13,0.00025,120]
[343980932,1733169367162,-538.13,0.00025,120]
[343980933,1733169367190,-538.13,0.00025,120]
[343980934,1733169367222,-500.0,0.00025,120]
[343980935,1733169367252,-538.13,0.00025,120]
[343980936,1733169367282,-538.13,0.00025,120]
[343980937,1733169367313,-500.0,0.00025,120]
[343980938,1733169367343,-500.0,0.00025,120]
[343980939,1733169367373,-538.13,0.00025,120]
[343980940,1733169367402,-538.13,0.00025,120]
[343980941,1733169367433,-500.0,0.00025,120]
[343980942,1733169367464,-538.13,0.00025,120]
[343980943,1733169367501,-538.13,0.00025,120]
[343980944,1733169367531,-500.0,0.00025,120]
[343980945,1733169367563,-538.13,0.00025,120]
[343980946,1733169367838,-538.13,0.00025,120]
[343980947,1733169367868,-500.0,0.00025,120]
[343980948,1733169367898,-538.13,0.00025,120]
[343980949,1733169367926,-538.13,0.00025,120]
[343980950,1733169367956,-538.19362418,0.00025,120]
[343980951,1733169367987,-500.0,0.00025,120]
[343980952,1733169368016,-500.0,0.00025,120]
[343980953,1733169368045,-500.0,0.00025,120]
[343980954,1733169368075,-830.72,0.00025,120]
[343980955,1733169368104,-500.0,0.00025,120]
[343980956,1733169368133,-643.72,0.00025,120]
[343980957,1733169368163,-500.0,0.00025,120]
[343980958,1733169368192,-500.0,0.00025,120]
[343980959,1733169368223,-595.55,0.00025,120]
[343980960,1733169368253,-2828.02,0.00025,120]
[343980961,1733169368282,-1861.56,0.00025,120]
[343980962,1733169368312,-500.0,0.00025,120]
[343980963,1733169368342,-887.04,0.00025,120]
[343980964,1733169368371,-500.0,0.00025,120]
[343980965,1733169368400,-500.0,0.00025,120]
[343980966,1733169368430,-629.09926014,0.00025,120]
[343980967,1733169368460,-1744.11,0.00025,120]
[343980968,1733169368494,-500.0,0.00025,120]
[343980969,1733169368523,-500.0,0.00025,120]
[343980970,1733169368555,-568.87,0.00025,120]
[343980971,1733169368588,-500.0,0.00025,120]
[343980972,1733169368620,-639.95,0.00025,120]
[343980973,1733169368651,-500.0,0.00025,120]
[343980974,1733169368682,-1962.72,0.00025,120]
[343980975,1733169368712,-500.0,0.00025,120]
[343980976,1733169368744,-395.37079405,0.00025,120]
[343980977,1733169368775,-1727.84,0.00025,120]
[343980978,1733169368806,-1487.29,0.00025,120]
[343980979,1733169368837,-500.0,0.00025,120]
[343980980,1733169368866,-716.14,0.00025,120]
[343980981,1733169368895,-500.0,0.00025,120]
[343980982,1733169368925,-2175.69,0.00025,120]
[343980983,1733169368954,-500.0,0.00025,120]
[343980984,1733169368985,-500.0,0.00025,120]
[343980985,1733169369014,-624.76,0.00025,120]
[343980986,1733169369044,-780.96,0.00025,120]
[343980987,1733169369073,-500.0,0.00025,120]
[343980988,1733169369103,-2630.4,0.00025,120]
[343980989,1733169369133,-500.0,0.00025,120]
[343980990,1733169369163,-170.35370767,0.00025,120]
[343980991,1733169369194,-500.0,0.00025,120]
[343980992,1733169369226,-635.32,0.00025,120]
[343980993,1733169369258,-500.0,0.00025,120]
[343980994,1733169369291,-3678.57,0.00025,120]
[343980995,1733169369321,-500.0,0.00025,120]
[343980996,1733169369353,-6003.72,0.00025,120]
[343980997,1733169369384,-500.0,0.00025,120]
[343980998,1733169369416,-522.5,0.00025,120]
[343980999,1733169369448,-857.61,0.00025,120]
[343981000,1733169369479,-620.34,0.00025,120]
[343981001,1733169369514,-500.0,0.00025,120]
[343981002,1733169369547,-500.0,0.00025,120]
[343981003,1733169369580,-500.0,0.00025,120]
[343981004,1733169369613,-225.57047896,0.00025,120]
[343981005,1733169369645,-1084.35,0.00025,120]
[343981006,1733169369676,-2661.6,0.00025,120]
[343981007,1733169369705,-500.0,0.00025,120]
[343981008,1733169369736,-500.0,0.00025,120]
[343981009,1733169369766,-500.0,0.00025,120]
[343981010,1733169369797,-500.0,0.00025,120]
[343981011,1733169369828,-500.0,0.00025,120]
[343981012,1733169369860,-1941.3,0.00025,120]
[343981013,1733169369890,-2961.65,0.00025,120]
[343981014,1733169369920,-500.0,0.00025,120]
[343981015,1733169369950,-601.13,0.00025,120]
[343981016,1733169369985,-500.0,0.00025,120]
[343981017,1733169370016,-500.0,0.00025,120]
[343981018,1733169370048,-500.0,0.00025,120]
[343981019,1733169370079,-982.36,0.00025,120]
[343981020,1733169370108,-2607.47,0.00025,120]
[343981021,1733169370137,-1085.53,0.00025,120]
[343981022,1733169370166,-500.0,0.00025,120]
[343981023,1733169370195,-1068.48,0.00025,120]
[343981024,1733169370229,-853.72,0.00025,120]
[343981025,1733169370265,-919.96,0.00025,120]
[343981026,1733169370295,-502.63421211,0.00025,120]
[343981027,1733169370325,-500.0,0.00025,120]
[343981028,1733169370356,-2476.13,0.00025,120]
[343981029,1733169370387,-500.0,0.00025,120]
[343981030,1733169370418,-3520.06,0.00025,120]
[343981031,1733169370450,-577.63,0.00025,120]
[343981032,1733169370480,-500.0,0.00025,120]
[343981033,1733169370515,-500.0,0.00025,120]
[343981034,1733169370550,-780.94,0.00025,120]
[343981035,1733169370582,-962.0,0.00025,120]
[343981036,1733169370612,-500.0,0.00025,120]
[343981037,1733169370642,-3307.98,0.00025,120]
[343981038,1733169370672,-500.0,0.00025,120]
[343981039,1733169370701,-500.0,0.00025,120]
[343981040,1733169371056,-500.0,0.00025,120]
[343981041,1733169371087,-2984.29,0.00025,120]
[343981042,1733169371116,-549.56,0.00025,120]
[343981043,1733169371146,-3169.39,0.00025,120]
[343981044,1733169371175,-500.0,0.00025,120]
[343981045,1733169371205,-2364.04,0.00025,120]
[343981046,1733169371236,-500.0,0.00025,120]
[343981047,1733169371264,-937.05,0.00025,120]
[343981048,1733169371294,-500.0,0.00025,120]
[343981049,1733169371323,-500.0,0.00025,120]
[343981050,1733169371352,-500.0,0.00025,120]
[343981051,1733169371383,-735.72,0.00025,120]
[343981052,1733169371415,-1649.71,0.00025,120]
[343981053,1733169371446,-2054.15,0.00025,120]
[343981054,1733169371480,-5090.11,0.00025,120]
[343981055,1733169371511,-2551.68,0.00025,120]
[343981056,1733169371544,-500.0,0.00025,120]
[343981057,1733169371574,-500.0,0.00025,120]
[343981058,1733169371603,-500.0,0.00025,120]
[343981059,1733169371632,-500.0,0.00025,120]
[343981060,1733169371663,-500.0,0.00025,120]
[343981061,1733169371694,-500.0,0.00025,120]
[343981062,1733169371726,-500.0,0.00025,120]
[343981063,1733169371761,-500.0,0.00025,120]
[343981064,1733169371793,-577.19,0.00025,120]
[343981065,1733169371823,-500.0,0.00025,120]
[343981066,1733169371854,-500.0,0.00025,120]
[343981067,1733169371882,-376.18048996,0.00025,120]
[343981068,1733169371911,-2269.02,0.00025,120]
[343981069,1733169371940,-537.77739635,0.00025,120]
[343981070,1733169371968,-968.38,0.00025,120]
[343981071,1733169371999,-1061.64,0.00025,120]
[343981072,1733169372031,-500.0,0.00025,120]
[343981073,1733169372060,-293.54419922,0.00025,120]
[343981074,1733169372089,-1237.59,0.00025,120]
[343981075,1733169372119,-500.0,0.00025,120]
[343981076,1733169372148,-500.0,0.00025,120]
[343981077,1733169372177,-839.27,0.00025,120]
[343981078,1733169372207,-3536.86,0.00025,120]
[343981079,1733169372239,-2007.31,0.00025,120]
[343981080,1733169372270,-2274.03,0.00025,120]
[343981081,1733169372302,-932.09,0.00025,120]
[343981082,1733169372333,-500.0,0.00025,120]
[343981083,1733169372365,-676.72,0.00025,120]
[343981084,1733169372394,-500.0,0.00025,120]
[343981085,1733169372422,-741.16,0.00025,120]
[343981086,1733169372450,-500.0,0.00025,120]
[343981087,1733169372483,-500.0,0.00025,120]
[343981088,1733169372519,-500.0,0.00025,120]
[343981089,1733169372551,-500.0,0.00025,120]
[343981090,1733169372581,-449.59243632,0.00025,120]
[343981091,1733169372610,-500.0,0.00025,120]
[343981092,1733169372639,-895.0,0.00025,120]
[343981093,1733169372668,-500.0,0.00025,120]
[343981094,1733169372695,-500.0,0.00025,120]
[343981095,1733169372724,-2574.94,0.00025,120]
[343981096,1733169372752,-4671.16,0.00025,120]
[343981097,1733169372781,-1382.67,0.00025,120]
[343981098,1733169372809,-739.55,0.00025,60]
[343981099,1733169372837,-500.0,0.00025,120]
[343981100,1733169372867,-500.0,0.00025,120]
[343981101,1733169372894,-500.0,0.00025,120]
[343981102,1733169372923,-500.0,0.00025,120]
[343981103,1733169372951,-500.0,0.00025,120]
[343981104,1733169372980,-500.0,0.00025,120]
[343981105,1733169373008,-503.1313365,0.00025,120]
[343981106,1733169373036,-500.0,0.00025,120]
[343981107,1733169373062,-503.81925854,0.00025,120]
[343981108,1733169373089,-642.22,0.00025,120]
[343981109,1733169373116,-3306.2,0.00025,120]
[343981110,1733169373145,-506.97,0.00025,120]
[343981111,1733169373172,-1132.26,0.00025,120]
[343981112,1733169373200,-500.0,0.00025,120]
[343981113,1733169373228,-500.0,0.00025,120]
[343981114,1733169373256,-500.0,0.00025,120]
[343981115,1733169373284,-500.0,0.00025,120]
[343981116,1733169373312,-500.0,0.00025,120]
[343981117,1733169373340,-3280.26,0.00025,120]
[343981118,1733169373369,-500.0,0.00025,120]
[343981119,1733169373398,-500.0,0.00025,120]
[343981120,1733169373426,-500.0,0.00025,120]
[343981121,1733169373455,-305.86235379,0.00025,120]
[343981122,1733169373484,-500.0,0.00025,120]
[343981123,1733169373516,-500.0,0.00025,120]
[343981124,1733169373547,-500.0,0.00025,120]
[343981125,1733169373577,-500.0,0.00025,120]
[343981126,1733169373607,-500.0,0.00025,120]
[343981127,1733169373637,-500.0,0.00025,120]
[343981128,1733169373669,-500.0,0.00025,120]
[343981129,1733169373697,-500.0,0.00025,120]
[343981130,1733169373728,-500.0,0.00025,120]
[343981131,1733169373762,-500.0,0.00025,120]
[343981132,1733169373791,-500.0,0.00025,120]
[343981133,1733169373819,-748.99,0.00025,120]
[343981134,1733169373847,-500.0,0.00025,120]
[343981135,1733169374188,-500.0,0.00025,120]
[343981136,1733169374218,-150.4138843,0.00025,120]
[343981137,1733169374253,-500.0,0.00025,120]
[343981138,1733169374283,-1511.73,0.00025,120]
[343981139,1733169374312,-500.0,0.00025,120]
[343981140,1733169374340,-500.0,0.00025,120]
[343981141,1733169374369,-869.61,0.00025,120]
[343981142,1733169374397,-500.0,0.00025,120]
[343981143,1733169374426,-500.0,0.00025,120]
[343981144,1733169374456,-500.0,0.00025,120]
[343981145,1733169374490,-479.98358431,0.00025,120]
[343981146,1733169374519,-2160.41,0.00025,120]
[343981147,1733169374550,-500.0,0.00025,120]
[343981148,1733169374579,-500.0,0.00025,120]
[343981149,1733169374609,-500.0,0.00025,120]
[343981150,1733169374638,-3631.48,0.00025,120]
[343981151,1733169374667,-500.0,0.00025,120]
[343981152,1733169374696,-500.0,0.00025,120]
[343981153,1733169374728,-742.76,0.00025,120]
[343981154,1733169374755,-507.83,0.00025,120]
[343981155,1733169374783,-500.0,0.00025,120]
[343981156,1733169374811,-500.0,0.00025,120]
[343981157,1733169374840,-2122.98,0.00025,120]
[343981158,1733169374868,-1844.92,0.00025,120]
[343981159,1733169374897,-2500.0,0.00025,120]
[343981160,1733169374924,-500.0,0.00025,120]
[343981161,1733169374953,-1933.1,0.00025,120]
[343981162,1733169374982,-500.0,0.00025,120]
[343981163,1733169375010,-1231.15,0.00025,120]
[343981164,1733169375037,-500.0,0.00025,120]
[343981165,1733169375064,-300.0,0.00025,120]
[343981166,1733169375091,-506.92,0.00025,120]
[343981167,1733169375118,-583.79,0.00025,120]
[343981168,1733169375147,-674.34,0.00025,120]
[343981169,1733169375176,-1323.96,0.00025,120]
[343981170,1733169375203,-500.0,0.00025,120]
[343981171,1733169375231,-500.0,0.00025,120]
[343981172,1733169375257,-500.0,0.00025,120]
[343981173,1733169375285,-500.0,0.00025,120]
[343981174,1733169375314,-656.68,0.00025,120]
[343981175,1733169375342,-2506.27,0.00025,120]
[343981176,1733169375371,-500.0,0.00025,120]
[343981177,1733169375399,-500.0,0.00025,120]
[343981178,1733169375428,-500.0,0.00025,120]
[343981179,1733169375456,-773.83,0.00025,120]
[343981180,1733169375487,-500.0,0.00025,120]
[343981181,1733169375518,-500.0,0.00025,120]
[343981182,1733169375546,-500.0,0.00025,120]
[343981183,1733169375574,-1243.26,0.00025,120]
[343981184,1733169375602,-500.0,0.00025,120]
[343981185,1733169375630,-1030.51,0.00025,120]
[343981186,1733169375659,-1013.12,0.00025,120]
[343981187,1733169375687,-1384.95,0.00025,120]
[343981188,1733169375716,-843.35,0.00025,120]
[343981189,1733169375746,-500.0,0.00025,120]
[343981190,1733169375779,-500.0,0.00025,120]
[343981191,1733169375808,-3564.37,0.00025,120]
[343981192,1733169375836,-500.0,0.00025,120]
[343981193,1733169375865,-2876.71,0.00025,120]
[343981194,1733169375894,-500.0,0.00025,120]
[343981195,1733169375922,-1145.3,0.00025,120]
[343981196,1733169375952,-3061.04,0.00025,120]
[343981197,1733169375981,-880.09,0.00025,120]
[343981198,1733169376010,-500.0,0.00025,120]
[343981199,1733169376039,-500.0,0.00025,120]
[343981200,1733169376071,-509.73039681,0.00025,120]
[343981201,1733169376101,-500.0,0.00025,120]
[343981202,1733169376129,-912.74,0.00025,120]
[343981203,1733169376159,-500.0,0.00025,120]
[343981204,1733169376187,-673.42,0.00025,120]
[343981205,1733169376217,-555.24,0.00025,120]
[343981206,1733169376250,-1077.65,0.00025,120]
[343981207,1733169376279,-500.0,0.00025,120]
[343981208,1733169376308,-500.0,0.00025,120]
[343981209,1733169376337,-660.74,0.00025,120]
[343981210,1733169376366,-619.73,0.00025,120]
[343981211,1733169376395,-500.0,0.00025,120]
[343981212,1733169376426,-500.0,0.00025,120]
[343981213,1733169376457,-1296.37,0.00025,120]
[343981214,1733169376491,-1749.32,0.00025,120]
[343981215,1733169376523,-500.0,0.00025,120]
[343981216,1733169376558,-2629.14,0.00025,120]
[343981217,1733169376593,-500.0,0.00025,120]
[343981218,1733169376626,-1495.36,0.00025,120]
[343981219,1733169376658,-500.0,0.00025,120]
[343981220,1733169376688,-500.0,0.00025,120]
[343981221,1733169376720,-3065.3,0.00025,120]
[343981222,1733169376754,-1241.92,0.00025,120]
[343981223,1733169376784,-1199.44,0.00025,120]
[343981224,1733169376813,-6015.4,0.00025,120]
[343981225,1733169376844,-1859.06,0.00025,120]
[343981226,1733169376874,-500.0,0.00025,120]
[343981227,1733169376904,-500.0,0.00025,120]
[343981228,1733169376935,-2687.99,0.00025,120]
[343981229,1733169377249,-500.0,0.00025,120]
[343981230,1733169377280,-500.0,0.00025,120]
[343981231,1733169377312,-500.0,0.00025,120]
[343981232,1733169377342,-500.0,0.00025,120]
[343981233,1733169377372,-1568.09,0.00025,120]
[343981234,1733169377402,-3464.61,0.00025,120]
[343981235,1733169377431,-2514.24,0.00025,120]
[343981236,1733169377461,-500.0,0.00025,120]
[343981237,1733169377498,-500.0,0.00025,120]
[343981238,1733169377529,-500.0,0.00025,120]
[343981239,1733169377560,-2106.86,0.00025,120]
[343981240,1733169377593,-735.25,0.00025,120]
[343981241,1733169377622,-2460.03,0.00025,120]
[343981242,1733169377651,-500.0,0.00025,120]
[343981243,1733169377680,-500.0,0.00025,120]
[343981244,1733169377708,-532.7,0.00025,120]
[343981245,1733169377739,-722.79,0.00025,120]
[343981246,1733169377766,-500.0,0.00025,120]
[343981247,1733169377793,-500.0,0.00025,120]
[343981248,1733169377821,-1332.55,0.00025,120]
[343981249,1733169377848,-563.99,0.00025,120]
[343981250,1733169377874,-500.0,0.00025,120]
[343981251,1733169377902,-1806.28,0.00025,120]
[343981252,1733169377929,-2899.78,0.00025,120]
[343981253,1733169377958,-1779.74,0.00025,120]
[343981254,1733169377985,-574.61,0.00025,120]
[343981255,1733169378015,-1203.83,0.00025,120]
[343981256,1733169378044,-755.11,0.00025,120]
[343981257,1733169378074,-3535.97,0.00025,120]
[343981258,1733169378102,-3527.98,0.00025,120]
[343981259,1733169378134,-513.23140314,0.00025,120]
[343981260,1733169378164,-150.10343,0.00025,120]
[343981261,1733169378195,-500.0,0.00025,120]
[343981262,1733169378226,-500.0,0.00025,120]
[343981263,1733169378255,-500.0,0.00025,120]
[343981264,1733169378286,-500.0,0.00025,120]
[343981265,1733169378318,-500.0,0.00025,120]
[343981266,1733169378349,-500.0,0.00025,120]
[343981267,1733169378380,-500.0,0.00025,120]
[343981268,1733169378410,-164.53376247,0.00025,120]
[343981269,1733169378441,-605.28,0.00025,120]
[343981270,1733169378472,-500.0,0.00025,120]
[343981271,1733169378511,-500.0,0.00025,120]
[343981272,1733169378544,-500.0,0.00025,120]
[343981273,1733169378577,-585.07819732,0.00025,120]
[343981274,1733169378610,-500.0,0.00025,120]
[343981275,1733169378641,-1404.0,0.00025,120]
[343981276,1733169378672,-500.0,0.00025,120]
[343981277,1733169378704,-4359.98,0.00025,120]
[343981278,1733169378735,-578.22,0.00025,120]
[343981279,1733169378768,-942.74,0.00025,120]
[343981280,1733169378799,-1539.81,0.00025,120]
[343981281,1733169378829,-500.0,0.00025,120]
[343981282,1733169378859,-3127.0,0.00025,120]
[343981283,1733169378887,-1786.89,0.00025,120]
[343981284,1733169378916,-500.0,0.00025,120]
[343981285,1733169378945,-544.99,0.00025,120]
[343981286,1733169378973,-714.85,0.00025,120]
[343981287,1733169379004,-564.14,0.00025,120]
[343981288,1733169379035,-500.0,0.00025,120]
[343981289,1733169379066,-515.90738192,0.00025,120]
[343981290,1733169379096,-2040.9,0.00025,120]
[343981291,1733169379129,-556.38,0.00025,120]
[343981292,1733169379161,-2988.04,0.00025,120]
[343981293,1733169379258,-500.0,0.00025,120]
[343981294,1733169379354,-969.25,0.00025,120]
[343981295,1733169379476,-500.0,0.00025,120]
[343981296,1733169379575,-1157.3,0.00025,90]
[343981297,1733169379677,-500.0,0.00025,120]
[343981298,1733169379777,-500.0,0.00025,120]
[343981299,1733169379872,-500.0,0.00025,120]
[343981300,1733169379968,-2248.53,0.00025,120]
[343981301,1733169380063,-500.0,0.00025,120]
[343981302,1733169380153,-517.62,0.00025,120]
[343981303,1733169380248,-500.0,0.00025,120]
[343981304,1733169380341,-1824.16,0.00025,120]
[343981305,1733169380438,-511.8,0.00025,120]
[343981306,1733169380534,-500.0,0.00025,120]
[343981307,1733169380647,-500.0,0.00025,120]
[343981308,1733169380747,-1279.61,0.00025,120]
[343981309,1733169380850,-2613.43,0.00025,120]
[343981310,1733169380958,-500.0,0.00025,120]
[343981311,1733169381050,-500.0,0.00025,120]
[343981312,1733169381141,-990.08,0.00025,120]
[343981313,1733169381234,-1534.8,0.00025,120]
[343981314,1733169381323,-500.0,0.00025,120]
[343981315,1733169381411,-500.0,0.00025,120]
[343981316,1733169381504,-3161.91,0.00025,120]
[343981317,1733169381599,-1429.88,0.00025,120]
[343981318,1733169381691,-500.0,0.00025,120]
[343981319,1733169381780,-500.0,0.00025,120]
[343981320,1733169381869,-500.0,0.00025,120]
[343981321,1733169381963,-500.0,0.00025,120]
[343981322,1733169382057,-500.0,0.00025,120]
[343981323,1733169382145,-2238.73,0.00025,120]
[343981324,1733169382571,-5104.83,0.00025,120]
[343981325,1733169382662,-530.58470941,0.00025,120]
[343981326,1733169382759,-500.0,0.00025,120]
[343981327,1733169382848,-500.0,0.00025,120]
[343981328,1733169382937,-5518.37,0.00025,120]
[343981329,1733169383025,-1022.75,0.00025,120]
[343981330,1733169383109,-2768.85,0.00025,120]
[343981331,1733169383204,-759.91,0.00025,120]
[343981332,1733169383291,-500.0,0.00025,120]
[343981333,1733169383385,-500.0,0.00025,120]
[343981334,1733169383484,-500.0,0.00025,120]
[343981335,1733169383585,-500.0,0.00025,120]
[343981336,1733169383683,-991.35,0.00025,120]
[343981337,1733169383775,-3637.14,0.00025,120]
[343981338,1733169383874,-1521.0,0.00025,120]
[343981339,1733169383968,-500.0,0.00025,120]
[343981340,1733169384061,-523.23243111,0.00025,120]
[343981341,1733169384151,-507.65,0.00025,120]
[343981342,1733169384240,-1741.18,0.00025,120]
[343981343,1733169384331,-794.35,0.00025,120]
[343981344,1733169384418,-2422.35,0.00025,120]
[343981345,1733169384509,-3182.52,0.00025,120]
[343981346,1733169384610,-500.0,0.00025,120]
[343981347,1733169384702,-887.31,0.00025,120]
[343981348,1733169384800,-500.0,0.00025,120]
[343981349,1733169384892,-951.11,0.00025,120]
[343981350,1733169384985,-2121.78,0.00025,120]
[343981351,1733169385075,-600.22937177,0.00025,120]
[343981352,1733169385164,-595.07,0.00025,120]
[343981353,1733169385257,-500.0,0.00025,120]
[343981354,1733169385343,-2247.5,0.00025,120]
[343981355,1733169385436,-3494.81,0.00025,120]
[343981356,1733169385526,-500.0,0.00025,120]
[343981357,1733169385622,-500.71,0.00025,120]
[343981358,1733169385716,-500.0,0.00025,120]
[343981359,1733169385814,-500.0,0.00025,120]
[343981360,1733169385916,-1022.28,0.00025,120]
[343981361,1733169386015,-178.77047734,0.00025,120]
[343981362,1733169386110,-2885.66,0.00025,120]
[343981363,1733169386201,-500.0,0.00025,120]
[343981364,1733169386297,-500.0,0.00025,120]
[343981365,1733169386392,-500.0,0.00025,120]
[343981366,1733169386489,-500.0,0.00025,120]
[343981367,1733169386587,-500.0,0.00025,120]
[343981368,1733169386698,-500.0,0.00025,120]
[343981369,1733169386800,-500.0,0.00025,120]
[343981370,1733169386891,-2090.17,0.00025,120]
[343981371,1733169386984,-500.0,0.00025,120]
[343981372,1733169387073,-500.0,0.00025,120]
[343981373,1733169387167,-500.0,0.00025,120]
[343981374,1733169387261,-2894.02,0.00025,120]
[343981375,1733169387356,-500.0,0.00025,120]
[343981376,1733169387451,-1896.23,0.00025,120]
[343981377,1733169387561,-500.0,0.00025,120]
[343981378,1733169387655,-500.0,0.00025,120]
[343981379,1733169387743,-1465.8,0.00025,120]
[343981380,1733169387835,-695.56,0.00025,120]
[343981381,1733169387925,-2405.55,0.00025,120]
[343981382,1733169388018,-500.0,0.00025,120]
[343981383,1733169388109,-1133.27,0.00025,120]
[343981384,1733169388206,-500.0,0.00025,120]
[343981385,1733169388299,-990.47,0.00025,120]